[Event "*** SCC Grand Prix: Titled Tuesday Blitz"]
[Site "Chess.com"]
[Date "2020.07.14"]
[Round "3"]
[White "Munkhzul_Turmunkh"]
[Black "Alopekos"]
[Result "1-0"]
[WhiteElo "2544"]
[BlackElo "2348"]
[TimeControl "180+1"]
[EndTime "10:29:31 PDT"]
[Termination "Munkhzul_Turmunkh won on time"]

1. e4 {[%clk 0:03:00.9]} 1... c5 {[%clk 0:03:00.1]} 2. Nf3 {[%clk 0:03:00.1]}
2... e6 {[%clk 0:03:00.6]} 3. d4 {[%clk 0:03:00]} 3... cxd4 {[%clk 0:03:01.5]}
4. Nxd4 {[%clk 0:03:00.5]} 4... Nc6 {[%clk 0:03:02.1]} 5. Nc3 {[%clk 0:02:59.8]}
5... Qc7 {[%clk 0:03:02.2]} 6. Be3 {[%clk 0:02:59.7]} 6... a6 {[%clk 0:03:02.5]}
7. Qd2 {[%clk 0:02:59.5]} 7... Nf6 {[%clk 0:03:01.8]} 8. O-O-O {[%clk
0:02:59.4]} 8... Bb4 {[%clk 0:03:01.1]} 9. f3 {[%clk 0:02:59.4]} 9... O-O {[%clk
0:03:01.6]} 10. g4 {[%clk 0:02:53.6]} 10... b5 {[%clk 0:03:01.8]} 11. g5 {[%clk
0:02:53]} 11... Nh5 {[%clk 0:02:57]} 12. Nxc6 {[%clk 0:02:48.8]} 12... dxc6
{[%clk 0:02:18.3]} 13. f4 {[%clk 0:02:46.4]} 13... e5 {[%clk 0:01:52]} 14. f5
{[%clk 0:02:44.3]} 14... Nf4 {[%clk 0:01:32.5]} 15. a3 {[%clk 0:02:30.8]} 15...
Be7 {[%clk 0:01:30.3]} 16. Qf2 {[%clk 0:02:02.8]} 16... Bxg5 {[%clk 0:01:09.4]}
17. Rg1 {[%clk 0:01:53.7]} 17... Bf6 {[%clk 0:01:05]} 18. Bb6 {[%clk 0:01:45.3]}
18... Qb7 {[%clk 0:00:50.6]} 19. h4 {[%clk 0:01:40.8]} 19... a5 {[%clk
0:00:39.6]} 20. h5 {[%clk 0:01:39]} 20... h6 {[%clk 0:00:33.4]} 21. Kb1 {[%clk
0:01:29.9]} 21... b4 {[%clk 0:00:33.4]} 22. Na4 {[%clk 0:01:26.3]} 22... bxa3
{[%clk 0:00:28.2]} 23. b3 {[%clk 0:01:26.6]} 23... Rb8 {[%clk 0:00:15.6]} 24.
Ka2 {[%clk 0:01:18.3]} 24... Qa8 {[%clk 0:00:09.4]} 25. Qg3 {[%clk 0:01:15.3]}
25... Ba6 {[%clk 0:00:08.7]} 26. Bc5 {[%clk 0:01:07.7]} 26... Rfe8 {[%clk
0:00:06.7]} 27. Nb6 {[%clk 0:01:02.1]} 27... Rxb6 {[%clk 0:00:04.2]} 28. Bxb6
{[%clk 0:01:03]} 28... Bxf1 {[%clk 0:00:04.5]} 29. Rgxf1 {[%clk 0:01:02.9]}
29... a4 {[%clk 0:00:05]} 30. b4 {[%clk 0:00:59.8]} 30... Qa6 {[%clk 0:00:04.4]}
31. Bc5 {[%clk 0:00:55.1]} 31... Qc4+ {[%clk 0:00:04.4]} 32. Kxa3 {[%clk
0:00:54.7]} 32... Rb8 {[%clk 0:00:02.4]} 33. Rf2 {[%clk 0:00:36.2]} 33... Qxe4
{[%clk 0:00:02.5]} 34. Qe3 {[%clk 0:00:33.7]} 34... Qxf5 {[%clk 0:00:02.8]} 35.
Bd6 {[%clk 0:00:29]} 35... Re8 {[%clk 0:00:01.9]} 36. Rg1 {[%clk 0:00:27.4]}
36... Qxh5 {[%clk 0:00:02]} 37. Rxf4 {[%clk 0:00:26.3]} 37... Re6 {[%clk
0:00:01.5]} 38. Qf3 {[%clk 0:00:13.6]} 38... Qxf3+ {[%clk 0:00:01.1]} 39. Rxf3
{[%clk 0:00:14.5]} 39... Rxd6 {[%clk 0:00:01.9]} 40. Kxa4 {[%clk 0:00:12.9]}
40... e4 {[%clk 0:00:02.4]} 41. Rf4 {[%clk 0:00:12.7]} 41... Re6 {[%clk
0:00:02.1]} 42. Re1 {[%clk 0:00:12.1]} 42... e3 {[%clk 0:00:02.7]} 43. Rf3
{[%clk 0:00:12.4]} 43... Bd4 {[%clk 0:00:02.9]} 44. Kb3 {[%clk 0:00:11.1]} 44...
g5 {[%clk 0:00:03.4]} 45. c3 {[%clk 0:00:11.4]} 45... Bb6 {[%clk 0:00:03.7]} 46.
c4 {[%clk 0:00:11.6]} 46... Bd4 {[%clk 0:00:03]} 47. Rd1 {[%clk 0:00:10.1]}
47... Re4 {[%clk 0:00:02.7]} 48. Kc2 {[%clk 0:00:09.7]} 48... g4 {[%clk
0:00:02.5]} 49. Rg3 {[%clk 0:00:09.7]} 49... f5 {[%clk 0:00:02.6]} 50. Kd3
{[%clk 0:00:10]} 50... c5 {[%clk 0:00:02.2]} 51. b5 {[%clk 0:00:09.5]} 1-0

[Event "*** SCC Grand Prix: Titled Tuesday Blitz"]
[Site "Chess.com"]
[Date "2020.07.14"]
[Round "3"]
[White "topotun"]
[Black "Hikaru"]
[Result "0-1"]
[WhiteElo "2701"]
[BlackElo "3209"]
[TimeControl "180+1"]
[EndTime "10:29:32 PDT"]
[Termination "Hikaru won on time"]

1. e4 {[%clk 0:03:00.9]} 1... c6 {[%clk 0:02:51.8]} 2. d4 {[%clk 0:03:00.7]}
2... d5 {[%clk 0:02:52.7]} 3. Nd2 {[%clk 0:03:01.3]} 3... dxe4 {[%clk
0:02:51.6]} 4. Nxe4 {[%clk 0:03:02.2]} 4... Bf5 {[%clk 0:02:52.1]} 5. Ng3 {[%clk
0:03:02.3]} 5... Bg6 {[%clk 0:02:52.2]} 6. h4 {[%clk 0:03:02.5]} 6... h6 {[%clk
0:02:52.1]} 7. Nf3 {[%clk 0:03:02.9]} 7... Nd7 {[%clk 0:02:52]} 8. h5 {[%clk
0:03:03.3]} 8... Bh7 {[%clk 0:02:52.1]} 9. Bd3 {[%clk 0:03:03.5]} 9... Bxd3
{[%clk 0:02:51.9]} 10. Qxd3 {[%clk 0:03:04.4]} 10... e6 {[%clk 0:02:52.5]} 11.
Bd2 {[%clk 0:03:04.6]} 11... Ngf6 {[%clk 0:02:47.7]} 12. O-O-O {[%clk
0:03:04.1]} 12... Qc7 {[%clk 0:02:48.2]} 13. Ne4 {[%clk 0:03:00]} 13... O-O-O
{[%clk 0:02:46.7]} 14. g3 {[%clk 0:03:00.1]} 14... Nxe4 {[%clk 0:02:43.9]} 15.
Qxe4 {[%clk 0:03:01]} 15... Nf6 {[%clk 0:02:44.8]} 16. Qe2 {[%clk 0:03:01.1]}
16... Bd6 {[%clk 0:02:45.2]} 17. Kb1 {[%clk 0:03:01.5]} 17... Kb8 {[%clk
0:02:45.2]} 18. c4 {[%clk 0:02:51.8]} 18... c5 {[%clk 0:02:45.1]} 19. Bc3 {[%clk
0:02:51.7]} 19... Ka8 {[%clk 0:02:45.6]} 20. dxc5 {[%clk 0:02:40.4]} 20... Bxc5
{[%clk 0:02:41.4]} 21. Ne5 {[%clk 0:02:39.6]} 21... Rc8 {[%clk 0:02:37.6]} 22.
b3 {[%clk 0:02:25.1]} 22... a6 {[%clk 0:02:25.3]} 23. Bb2 {[%clk 0:02:23.8]}
23... Rhd8 {[%clk 0:02:18.8]} 24. f4 {[%clk 0:02:23.3]} 24... Bd6 {[%clk
0:02:06.4]} 25. g4 {[%clk 0:02:18.7]} 25... Ne8 {[%clk 0:02:00.9]} 26. g5 {[%clk
0:01:44.2]} 26... f6 {[%clk 0:01:59.8]} 27. Ng6 {[%clk 0:01:17.3]} 27... Qf7
{[%clk 0:01:54.8]} 28. Qg4 {[%clk 0:00:45.3]} 28... Bc5 {[%clk 0:01:49.1]} 29.
Rhe1 {[%clk 0:00:38.8]} 29... Nc7 {[%clk 0:01:48.5]} 30. gxf6 {[%clk 0:00:38.2]}
30... gxf6 {[%clk 0:01:48.6]} 31. f5 {[%clk 0:00:36.5]} 31... e5 {[%clk
0:01:49]} 32. Bc1 {[%clk 0:00:36.1]} 32... b5 {[%clk 0:01:34.4]} 33. Qe4+ {[%clk
0:00:34.8]} 33... Kb8 {[%clk 0:01:33.9]} 34. Bxh6 {[%clk 0:00:35]} 34... Bd4
{[%clk 0:01:33.2]} 35. Be3 {[%clk 0:00:34]} 35... bxc4 {[%clk 0:01:33.6]} 36.
Bxd4 {[%clk 0:00:34.1]} 36... exd4 {[%clk 0:01:34]} 37. Qe7 {[%clk 0:00:21]}
37... Qd5 {[%clk 0:01:29.5]} 38. Qb4+ {[%clk 0:00:19.5]} 38... Nb5 {[%clk
0:01:17.9]} 39. bxc4 {[%clk 0:00:19.8]} 39... Rxc4 {[%clk 0:01:14.8]} 40. Qb2
{[%clk 0:00:18.4]} 40... Ka7 {[%clk 0:01:13.7]} 41. Ka1 {[%clk 0:00:18.9]} 41...
Nc3 {[%clk 0:01:12.6]} 42. Re7+ {[%clk 0:00:18.4]} 42... Ka8 {[%clk 0:01:10.8]}
43. Rde1 {[%clk 0:00:16.4]} 43... Rb4 {[%clk 0:00:45.5]} 44. Qc2 {[%clk
0:00:15.6]} 44... Ra4 {[%clk 0:00:44]} 45. R1e2 {[%clk 0:00:10.5]} 45... Rb8
{[%clk 0:00:33.4]} 46. Re8 {[%clk 0:00:08.7]} 46... Rxa2+ {[%clk 0:00:22.6]} 47.
Qxa2 {[%clk 0:00:08.5]} 47... Nxa2 {[%clk 0:00:23.5]} 48. Rxb8+ {[%clk
0:00:07.8]} 48... Kxb8 {[%clk 0:00:24.4]} 49. Rxa2 {[%clk 0:00:07.3]} 49... Qxf5
{[%clk 0:00:22.8]} 50. Rb2+ {[%clk 0:00:05.7]} 50... Kc7 {[%clk 0:00:23]} 51.
Rh2 {[%clk 0:00:01.2]} 51... Qf1+ {[%clk 0:00:21.4]} 52. Kb2 {[%clk 0:00:01.6]}
52... Qg1 {[%clk 0:00:21.3]} 53. Rc2+ {[%clk 0:00:01.3]} 53... Kb6 {[%clk
0:00:20.9]} 54. Nf4 {[%clk 0:00:02.1]} 54... Qg5 {[%clk 0:00:19.2]} 55. Rf2
{[%clk 0:00:01.3]} 55... d3 {[%clk 0:00:19]} 0-1

[Event "*** SCC Grand Prix: Titled Tuesday Blitz"]
[Site "Chess.com"]
[Date "2020.07.14"]
[Round "3"]
[White "benko_008"]
[Black "floplover"]
[Result "0-1"]
[WhiteElo "2459"]
[BlackElo "2256"]
[TimeControl "180+1"]
[EndTime "10:29:32 PDT"]
[Termination "floplover won on time"]

1. d4 {[%clk 0:03:00.9]} 1... d5 {[%clk 0:02:59.6]} 2. c4 {[%clk 0:02:59.8]}
2... e6 {[%clk 0:02:59.5]} 3. Nc3 {[%clk 0:02:59]} 3... Bb4 {[%clk 0:02:59]} 4.
cxd5 {[%clk 0:02:58]} 4... exd5 {[%clk 0:02:58.9]} 5. Bf4 {[%clk 0:02:57.9]}
5... c6 {[%clk 0:02:47.7]} 6. e3 {[%clk 0:02:54.7]} 6... Ne7 {[%clk 0:02:47.8]}
7. Bd3 {[%clk 0:02:48.3]} 7... Bf5 {[%clk 0:02:47.7]} 8. Ne2 {[%clk 0:02:47.4]}
8... Bd6 {[%clk 0:02:46.4]} 9. Bg3 {[%clk 0:02:45.7]} 9... O-O {[%clk
0:02:43.6]} 10. Qc2 {[%clk 0:02:45.1]} 10... Bg6 {[%clk 0:02:39.8]} 11. Nf4
{[%clk 0:02:30.2]} 11... Na6 {[%clk 0:02:34.3]} 12. Nxg6 {[%clk 0:02:24.1]}
12... Nxg6 {[%clk 0:02:29.5]} 13. a3 {[%clk 0:02:21.6]} 13... Nc7 {[%clk
0:02:21.3]} 14. O-O {[%clk 0:02:20]} 14... Bxg3 {[%clk 0:02:19.7]} 15. hxg3
{[%clk 0:02:19.2]} 15... Re8 {[%clk 0:02:08]} 16. Ne2 {[%clk 0:02:17.8]} 16...
Qd6 {[%clk 0:01:56.5]} 17. Nf4 {[%clk 0:02:10.3]} 17... Re7 {[%clk 0:01:52.5]}
18. Rac1 {[%clk 0:01:57]} 18... a5 {[%clk 0:01:49.8]} 19. Qc5 {[%clk 0:01:54.5]}
19... Ne8 {[%clk 0:01:46.1]} 20. Qxd6 {[%clk 0:01:35.7]} 20... Nxd6 {[%clk
0:01:47]} 21. Bxg6 {[%clk 0:01:35.1]} 21... hxg6 {[%clk 0:01:45.9]} 22. a4
{[%clk 0:01:35.5]} 22... Ra6 {[%clk 0:01:42.2]} 23. b3 {[%clk 0:01:29.9]} 23...
Rb6 {[%clk 0:01:42.1]} 24. Rc3 {[%clk 0:01:17.1]} 24... g5 {[%clk 0:01:34.5]}
25. Ne2 {[%clk 0:01:01.3]} 25... f6 {[%clk 0:01:27.4]} 26. g4 {[%clk 0:00:57.6]}
26... Re4 {[%clk 0:01:20.7]} 27. f3 {[%clk 0:00:56.3]} 27... Re7 {[%clk
0:01:20]} 28. Kf2 {[%clk 0:00:55.4]} 28... Rb4 {[%clk 0:01:07.1]} 29. Nc1 {[%clk
0:00:45]} 29... Rb6 {[%clk 0:01:01.1]} 30. Nd3 {[%clk 0:00:43.3]} 30... Ne8
{[%clk 0:00:51.9]} 31. Rh1 {[%clk 0:00:42.6]} 31... Nc7 {[%clk 0:00:51.4]} 32.
Nc1 {[%clk 0:00:32.2]} 32... Na6 {[%clk 0:00:51.3]} 33. Ne2 {[%clk 0:00:20.5]}
33... Nb4 {[%clk 0:00:51]} 34. Ra1 {[%clk 0:00:18.4]} 34... Kf7 {[%clk
0:00:48.4]} 35. Ng3 {[%clk 0:00:18.2]} 35... g6 {[%clk 0:00:44.6]} 36. Nf1
{[%clk 0:00:18.1]} 36... Kg7 {[%clk 0:00:42.8]} 37. Nd2 {[%clk 0:00:18]} 37...
f5 {[%clk 0:00:41.6]} 38. gxf5 {[%clk 0:00:16.3]} 38... gxf5 {[%clk 0:00:41.8]}
39. Nf1 {[%clk 0:00:16.9]} 39... Kg6 {[%clk 0:00:41.2]} 40. Ng3 {[%clk
0:00:16.8]} 40... Re8 {[%clk 0:00:33.6]} 41. Ne2 {[%clk 0:00:16.7]} 41... Rh8
{[%clk 0:00:25.9]} 42. Rd1 {[%clk 0:00:16.2]} 42... Na2 {[%clk 0:00:23.7]} 43.
Rc2 {[%clk 0:00:15.5]} 43... Nb4 {[%clk 0:00:22.9]} 44. Rb2 {[%clk 0:00:15.4]}
44... Ra6 {[%clk 0:00:20.2]} 45. Rbb1 {[%clk 0:00:15.4]} 45... Raa8 {[%clk
0:00:20.2]} 46. Ng3 {[%clk 0:00:10]} 46... Rae8 {[%clk 0:00:19.7]} 47. Nf1
{[%clk 0:00:08.7]} 47... Rh1 {[%clk 0:00:17.9]} 48. Ng3 {[%clk 0:00:06.8]} 48...
Rh4 {[%clk 0:00:15.7]} 49. Nf1 {[%clk 0:00:06.5]} 49... Nc2 {[%clk 0:00:15.8]}
50. Rd3 {[%clk 0:00:05.1]} 50... Rh1 {[%clk 0:00:14.1]} 51. Rbd1 {[%clk
0:00:02]} 51... Nb4 {[%clk 0:00:10.4]} 0-1

[Event "*** SCC Grand Prix: Titled Tuesday Blitz"]
[Site "Chess.com"]
[Date "2020.07.14"]
[Round "3"]
[White "SergeyKarjakin"]
[Black "Jungle_Jaguar"]
[Result "1/2-1/2"]
[WhiteElo "2965"]
[BlackElo "2674"]
[TimeControl "180+1"]
[EndTime "10:29:33 PDT"]
[Termination "Game drawn by agreement"]

1. e4 {[%clk 0:03:00.9]} 1... e5 {[%clk 0:03:00]} 2. Nf3 {[%clk 0:03:01.4]} 2...
Nc6 {[%clk 0:03:00.3]} 3. Bc4 {[%clk 0:03:02]} 3... Bc5 {[%clk 0:02:59.5]} 4. c3
{[%clk 0:03:02.5]} 4... Nf6 {[%clk 0:02:59.6]} 5. d3 {[%clk 0:03:03.1]} 5... O-O
{[%clk 0:03:00]} 6. O-O {[%clk 0:03:03.7]} 6... d5 {[%clk 0:03:00.5]} 7. exd5
{[%clk 0:03:04.6]} 7... Nxd5 {[%clk 0:03:01.1]} 8. Re1 {[%clk 0:03:05]} 8... Bg4
{[%clk 0:03:01.3]} 9. Nbd2 {[%clk 0:03:02.3]} 9... f6 {[%clk 0:02:50.6]} 10. Qb3
{[%clk 0:02:25.9]} 10... Ne7 {[%clk 0:02:50.4]} 11. d4 {[%clk 0:02:03.9]} 11...
Bb6 {[%clk 0:02:27.1]} 12. h3 {[%clk 0:01:56.7]} 12... Bh5 {[%clk 0:02:18]} 13.
dxe5 {[%clk 0:01:56.1]} 13... fxe5 {[%clk 0:02:17.3]} 14. Rxe5 {[%clk
0:01:50.8]} 14... Bf7 {[%clk 0:02:17.8]} 15. Ng5 {[%clk 0:01:39.4]} 15... c6
{[%clk 0:02:17]} 16. Ndf3 {[%clk 0:01:32.5]} 16... Kh8 {[%clk 0:02:03.7]} 17.
Nxf7+ {[%clk 0:01:25.2]} 17... Rxf7 {[%clk 0:02:04.6]} 18. Bg5 {[%clk
0:01:25.1]} 18... Qd7 {[%clk 0:01:56.7]} 19. Bxe7 {[%clk 0:01:06.9]} 19... Rxf3
{[%clk 0:01:47.2]} 20. gxf3 {[%clk 0:00:42.9]} 20... Qxh3 {[%clk 0:01:46.9]} 21.
Rg5 {[%clk 0:00:41.9]} 21... Qxf3 {[%clk 0:01:40.1]} 22. Qc2 {[%clk 0:00:38.7]}
22... Nxe7 {[%clk 0:00:59.7]} 23. Qe2 {[%clk 0:00:38.2]} 23... Qf6 {[%clk
0:00:37.2]} 24. Rg2 {[%clk 0:00:31.4]} 24... Ng6 {[%clk 0:00:31.4]} 25. Qe6
{[%clk 0:00:22.5]} 25... Qxe6 {[%clk 0:00:20.3]} 26. Bxe6 {[%clk 0:00:21.7]}
26... Nf4 {[%clk 0:00:21]} 27. Bc4 {[%clk 0:00:18.2]} 27... Nxg2 {[%clk
0:00:21.1]} 28. Kxg2 {[%clk 0:00:19.1]} 28... Rf8 {[%clk 0:00:21.7]} 29. f3
{[%clk 0:00:19.2]} 29... Re8 {[%clk 0:00:16]} 30. Rd1 {[%clk 0:00:19.2]} 30...
Rd8 {[%clk 0:00:14.5]} 31. Re1 {[%clk 0:00:18.3]} 31... g6 {[%clk 0:00:12.6]}
32. Re2 {[%clk 0:00:16.9]} 32... Rd7 {[%clk 0:00:12.1]} 33. a4 {[%clk
0:00:16.5]} 33... Kg7 {[%clk 0:00:12.2]} 34. Kg3 {[%clk 0:00:15.8]} 34... Bc7+
{[%clk 0:00:12.3]} 35. Kg2 {[%clk 0:00:16.1]} 35... a5 {[%clk 0:00:13]} 36. Bb3
{[%clk 0:00:13.3]} 36... Bb6 {[%clk 0:00:12]} 37. Bc2 {[%clk 0:00:13.7]} 37...
Bc5 {[%clk 0:00:11.9]} 38. f4 {[%clk 0:00:13.3]} 38... Bb6 {[%clk 0:00:10.7]}
39. Kf3 {[%clk 0:00:13.1]} 39... Bc7 {[%clk 0:00:11.3]} 40. f5 {[%clk 0:00:09]}
40... Rf7 {[%clk 0:00:11.2]} 41. Rg2 {[%clk 0:00:08.7]} 41... Kh6 {[%clk
0:00:08]} 42. Kg4 {[%clk 0:00:07.8]} 42... gxf5+ {[%clk 0:00:08.4]} 43. Bxf5
{[%clk 0:00:08.3]} 43... Rg7+ {[%clk 0:00:08.6]} 44. Kf3 {[%clk 0:00:08.1]}
44... Rxg2 {[%clk 0:00:07]} 45. Kxg2 {[%clk 0:00:09]} 45... b6 {[%clk
0:00:05.6]} 46. Bd7 {[%clk 0:00:08.6]} 46... c5 {[%clk 0:00:05.9]} 47. c4 {[%clk
0:00:08.6]} 47... Kg5 {[%clk 0:00:06.2]} 48. Kf3 {[%clk 0:00:07.6]} 48... Be5
{[%clk 0:00:04.9]} 49. b3 {[%clk 0:00:07.7]} 49... Bc7 {[%clk 0:00:04.3]} 50.
Bc8 {[%clk 0:00:07.8]} 50... h5 {[%clk 0:00:04.1]} 1/2-1/2

[Event "*** SCC Grand Prix: Titled Tuesday Blitz"]
[Site "Chess.com"]
[Date "2020.07.14"]
[Round "3"]
[White "Kildepiotr"]
[Black "BocharovD"]
[Result "1/2-1/2"]
[WhiteElo "2595"]
[BlackElo "2779"]
[TimeControl "180+1"]
[EndTime "10:29:33 PDT"]
[Termination "Game drawn - insufficient material"]

1. Nf3 {[%clk 0:03:00.9]} 1... c5 {[%clk 0:02:59.3]} 2. g3 {[%clk 0:03:01.2]}
2... g6 {[%clk 0:02:59.3]} 3. Bg2 {[%clk 0:03:01.8]} 3... Bg7 {[%clk 0:02:59.6]}
4. c3 {[%clk 0:03:02.7]} 4... e5 {[%clk 0:02:57.3]} 5. e4 {[%clk 0:03:02.3]}
5... Nc6 {[%clk 0:02:55.3]} 6. O-O {[%clk 0:03:01.9]} 6... Nge7 {[%clk
0:02:55.1]} 7. Na3 {[%clk 0:03:01.8]} 7... O-O {[%clk 0:02:54.4]} 8. d4 {[%clk
0:03:02.1]} 8... cxd4 {[%clk 0:02:45.7]} 9. cxd4 {[%clk 0:03:03]} 9... exd4
{[%clk 0:02:43.3]} 10. Nb5 {[%clk 0:03:01.6]} 10... d5 {[%clk 0:02:43.6]} 11.
Nfxd4 {[%clk 0:02:53.7]} 11... Nxd4 {[%clk 0:02:27.2]} 12. Nxd4 {[%clk
0:02:52.7]} 12... dxe4 {[%clk 0:02:27.7]} 13. Nb5 {[%clk 0:02:52]} 13... Qxd1
{[%clk 0:01:46.2]} 14. Rxd1 {[%clk 0:02:51.3]} 14... Bg4 {[%clk 0:01:46.7]} 15.
Re1 {[%clk 0:02:35.3]} 15... Nc6 {[%clk 0:01:29]} 16. Rxe4 {[%clk 0:02:25.7]}
16... Bf5 {[%clk 0:01:23.8]} 17. Re1 {[%clk 0:02:24.8]} 17... Rad8 {[%clk
0:01:23]} 18. Bxc6 {[%clk 0:02:14.1]} 18... bxc6 {[%clk 0:01:19.4]} 19. Nxa7
{[%clk 0:02:14.3]} 19... c5 {[%clk 0:01:07.1]} 20. Nc6 {[%clk 0:02:12.9]} 20...
Rde8 {[%clk 0:00:50]} 21. Be3 {[%clk 0:01:27.5]} 21... Bxb2 {[%clk 0:00:42.1]}
22. Bxc5 {[%clk 0:01:25.2]} 22... Bxa1 {[%clk 0:00:10.4]} 23. Rxa1 {[%clk
0:01:22.9]} 23... Rc8 {[%clk 0:00:01.8]} 24. Bxf8 {[%clk 0:01:18.6]} 24... Kxf8
{[%clk 0:00:02.7]} 25. Nd4 {[%clk 0:01:09.4]} 25... Bd7 {[%clk 0:00:02.6]} 26.
Kf1 {[%clk 0:00:57.9]} 26... Rc4 {[%clk 0:00:02]} 27. Nf3 {[%clk 0:00:49.5]}
27... Bb5 {[%clk 0:00:01.3]} 28. Kg1 {[%clk 0:00:42.5]} 28... Bc6 {[%clk
0:00:01.1]} 29. Ne5 {[%clk 0:00:41.8]} 29... Rc5 {[%clk 0:00:02]} 30. Nxc6
{[%clk 0:00:41.5]} 30... Rxc6 {[%clk 0:00:02.9]} 31. a4 {[%clk 0:00:42]} 31...
Ke7 {[%clk 0:00:03]} 32. Kg2 {[%clk 0:00:41]} 32... Ra6 {[%clk 0:00:03.9]} 33.
a5 {[%clk 0:00:39.6]} 33... Kd6 {[%clk 0:00:04.8]} 34. Kf3 {[%clk 0:00:39.9]}
34... Kd5 {[%clk 0:00:05.4]} 35. Kf4 {[%clk 0:00:40]} 35... f6 {[%clk
0:00:05.7]} 36. h4 {[%clk 0:00:40]} 36... Kd4 {[%clk 0:00:06.1]} 37. f3 {[%clk
0:00:39.4]} 37... Kd5 {[%clk 0:00:06.2]} 38. g4 {[%clk 0:00:37.2]} 38... Kd4
{[%clk 0:00:06.4]} 39. g5 {[%clk 0:00:30.1]} 39... fxg5+ {[%clk 0:00:06.8]} 40.
hxg5 {[%clk 0:00:26.9]} 40... Kd5 {[%clk 0:00:07.1]} 41. Re1 {[%clk 0:00:20]}
41... Kd6 {[%clk 0:00:05.3]} 42. Re5 {[%clk 0:00:18.3]} 42... Rc6 {[%clk
0:00:05.6]} 43. Rb5 {[%clk 0:00:16.5]} 43... Rc4+ {[%clk 0:00:05.4]} 44. Kg3
{[%clk 0:00:13.5]} 44... Ra4 {[%clk 0:00:06]} 45. Rb7 {[%clk 0:00:09.3]} 45...
Rxa5 {[%clk 0:00:05.7]} 46. Rxh7 {[%clk 0:00:09.7]} 46... Rxg5+ {[%clk
0:00:05.6]} 47. Kf4 {[%clk 0:00:09.2]} 47... Rf5+ {[%clk 0:00:06]} 48. Kg4
{[%clk 0:00:09.4]} 48... Ke6 {[%clk 0:00:06.9]} 49. Ra7 {[%clk 0:00:08.7]} 49...
Kf6 {[%clk 0:00:07.1]} 50. Ra6+ {[%clk 0:00:08.9]} 50... Kg7 {[%clk 0:00:07.4]}
51. f4 {[%clk 0:00:09.8]} 51... Rf6 {[%clk 0:00:07.5]} 52. Rxf6 {[%clk
0:00:09.4]} 52... Kxf6 {[%clk 0:00:08.4]} 53. Kf3 {[%clk 0:00:09.9]} 53... Kf5
{[%clk 0:00:08.6]} 54. Kg3 {[%clk 0:00:09.5]} 54... g5 {[%clk 0:00:09.5]} 55.
fxg5 {[%clk 0:00:10.4]} 55... Kxg5 {[%clk 0:00:10.4]} 1/2-1/2

[Event "*** SCC Grand Prix: Titled Tuesday Blitz"]
[Site "Chess.com"]
[Date "2020.07.14"]
[Round "3"]
[White "QuintilianoR"]
[Black "Nathan_Filgueiras"]
[Result "1-0"]
[WhiteElo "2650"]
[BlackElo "2411"]
[TimeControl "180+1"]
[EndTime "10:29:34 PDT"]
[Termination "QuintilianoR won by resignation"]

1. Nf3 {[%clk 0:03:00.9]} 1... Nf6 {[%clk 0:02:58.9]} 2. c4 {[%clk 0:03:00.8]}
2... b6 {[%clk 0:02:58.6]} 3. g3 {[%clk 0:03:01.1]} 3... Bb7 {[%clk 0:02:59.2]}
4. Bg2 {[%clk 0:03:01.8]} 4... e6 {[%clk 0:02:59.8]} 5. O-O {[%clk 0:03:02.3]}
5... Be7 {[%clk 0:03:00.4]} 6. d4 {[%clk 0:02:58.2]} 6... O-O {[%clk 0:03:00]}
7. Re1 {[%clk 0:02:57.9]} 7... d5 {[%clk 0:02:57.2]} 8. cxd5 {[%clk 0:02:57.9]}
8... exd5 {[%clk 0:02:57.3]} 9. Nc3 {[%clk 0:02:58.1]} 9... Ne4 {[%clk
0:02:56.9]} 10. Bf4 {[%clk 0:02:55.8]} 10... Nd7 {[%clk 0:02:53.5]} 11. Rc1
{[%clk 0:02:55]} 11... c5 {[%clk 0:02:53]} 12. dxc5 {[%clk 0:02:54.9]} 12...
Bxc5 {[%clk 0:02:52.6]} 13. e3 {[%clk 0:02:09.6]} 13... Ndf6 {[%clk 0:02:34.9]}
14. Nd4 {[%clk 0:01:59.2]} 14... h6 {[%clk 0:02:24.6]} 15. h4 {[%clk 0:01:54.2]}
15... Nxc3 {[%clk 0:02:20.9]} 16. bxc3 {[%clk 0:01:52.1]} 16... Ne4 {[%clk
0:02:13.5]} 17. Be5 {[%clk 0:01:37.4]} 17... Re8 {[%clk 0:01:19.1]} 18. Nf3
{[%clk 0:01:27.6]} 18... Qd7 {[%clk 0:01:02.9]} 19. Bd4 {[%clk 0:01:11]} 19...
Bxd4 {[%clk 0:00:51]} 20. Qxd4 {[%clk 0:01:06.4]} 20... Rac8 {[%clk 0:00:40.2]}
21. c4 {[%clk 0:00:57.7]} 21... Qe6 {[%clk 0:00:39.7]} 22. cxd5 {[%clk
0:00:50.2]} 22... Qxd5 {[%clk 0:00:38.2]} 23. Qxd5 {[%clk 0:00:47.8]} 23... Bxd5
{[%clk 0:00:39.1]} 24. Nd4 {[%clk 0:00:41.2]} 24... Nf6 {[%clk 0:00:31.5]} 25.
Bxd5 {[%clk 0:00:36.8]} 25... Nxd5 {[%clk 0:00:32.4]} 26. Nc6 {[%clk 0:00:37.4]}
26... Kf8 {[%clk 0:00:23.8]} 27. Red1 {[%clk 0:00:28.8]} 27... Nf6 {[%clk
0:00:17.5]} 28. Nxa7 {[%clk 0:00:28.6]} 28... Ra8 {[%clk 0:00:15.4]} 29. Rc7
{[%clk 0:00:25.8]} 29... Red8 {[%clk 0:00:13.2]} 30. Rxd8+ {[%clk 0:00:24.5]}
30... Rxd8 {[%clk 0:00:14.1]} 31. Rc8 {[%clk 0:00:20.3]} 31... Ke8 {[%clk
0:00:11]} 32. Rxd8+ {[%clk 0:00:19.3]} 32... Kxd8 {[%clk 0:00:11.9]} 33. Nb5
{[%clk 0:00:19.7]} 33... Kd7 {[%clk 0:00:11.8]} 34. Nd4 {[%clk 0:00:18.5]} 34...
Nd5 {[%clk 0:00:10.8]} 35. Kf1 {[%clk 0:00:17.5]} 35... Nc3 {[%clk 0:00:10.6]}
36. a3 {[%clk 0:00:17.9]} 36... Nb1 {[%clk 0:00:09.2]} 37. Nc2 {[%clk
0:00:17.5]} 37... Kc6 {[%clk 0:00:09.4]} 38. Ke2 {[%clk 0:00:17.5]} 38... Kb5
{[%clk 0:00:09.7]} 39. Kd3 {[%clk 0:00:17.1]} 39... Ka4 {[%clk 0:00:09.9]} 40.
Kc4 {[%clk 0:00:17.2]} 40... Nxa3+ {[%clk 0:00:02.8]} 41. Nxa3 {[%clk
0:00:16.9]} 41... Kxa3 {[%clk 0:00:03.7]} 42. Kb5 {[%clk 0:00:17.7]} 42... Kb3
{[%clk 0:00:04.3]} 43. Kxb6 {[%clk 0:00:18.3]} 43... Kc3 {[%clk 0:00:04.9]} 44.
Kc6 {[%clk 0:00:18.9]} 44... Kd3 {[%clk 0:00:05.3]} 45. Kd6 {[%clk 0:00:19.6]}
45... Ke2 {[%clk 0:00:05.8]} 46. Ke7 {[%clk 0:00:20.2]} 46... Kxf2 {[%clk
0:00:06.1]} 47. Kxf7 {[%clk 0:00:20.4]} 47... Kxg3 {[%clk 0:00:05.5]} 48. e4
{[%clk 0:00:20.8]} 48... Kxh4 {[%clk 0:00:02.3]} 49. e5 {[%clk 0:00:19.9]} 49...
g5 {[%clk 0:00:02.3]} 50. e6 {[%clk 0:00:20.4]} 50... g4 {[%clk 0:00:03.2]} 51.
e7 {[%clk 0:00:20.9]} 51... g3 {[%clk 0:00:04.1]} 52. e8=Q {[%clk 0:00:21.4]}
52... g2 {[%clk 0:00:05]} 53. Qe1+ {[%clk 0:00:21]} 53... Kh3 {[%clk 0:00:05.3]}
54. Qg1 {[%clk 0:00:21.6]} 54... Kg3 {[%clk 0:00:05.6]} 55. Kg6 {[%clk
0:00:21.6]} 55... h5 {[%clk 0:00:06.2]} 56. Kxh5 {[%clk 0:00:21.9]} 1-0